[Event "FIDE WCCC U10 2018"]
[Site "Santiago de Compostela"]
[Date "2018.11.11"]
[Round "7"]
[White "Ermitsch, Magnus"]
[Black "Vetokhin, Savva"]
[Result "1/2-1/2"]
[ECO "B57"]
[WhiteElo "1611"]
[BlackElo "1874"]
[Annotator "NA RC"]
[PlyCount "238"]
[EventDate "2018.11.04"]
[EventType "swiss"]
[EventCountry "ESP"]
[SourceTitle "playchess.com"]
[Source "ChessBase"]
[SourceQuality "1"]
[TimeControl "40/5400+30:1800+30"]

{[%evp 15,229,18,64,47,81,54,32767,70,60,53,32767,32767,32767,72,113,102,97,61,103,98,108,-9,73,32767,32767,32767,56,49,102,32767,32767,42,14,24,32767,-27,32767,-29,-21,-31,-26,-31,-31,-28,-40,32767,-20,-10,0,0,0,0,0,0,0,32767,0,0,0,0,0,32767,-10,-8,-1,0,-6,0,0,-4,0,0,0,0,0,0,0,32767,32767,32767,32767,0,0,-9,0,-8,-8,0,0,0,0,32767,0,0,0,0,0,32767,-22,-21,-14,-22,-8,-62,-62,-68,-63,-66,-81,-88,-63,-63,-64,-62,-8,-79,32767,32767,32767,32767,32767,32767,32767,-75,32767,32767,32767,32767,32767,32767,32767,32767,32767,32767,32767,32767,32767,32767,32767,32767,32767,32767,32767,32767,32767,32767,32767,32767,32767,-76,32767,-79,32767,32767,32767,32767,32767,-79,-79,32767,32767,32767,32767,32767,-83,32767,32767,32767,32767,-84,32767,-86,32767,32767,32767,32767,32767,32767,32767,-87,0,0,-85,-29986,-29987,-29987,-52,-86,-72,-79,-20,-72,-8,-8,-77,-62,0,-8,0,-65,-8,0,-8,0,0,0,0,0,0,0,0,0,0,0,0,0]} 1. e4 {[%emt 0:00:15] Rechlis,G} c5 {[%emt 0:00:00]} 2. Nf3 {[%emt 0:01:05]} Nc6 {[%emt 0:00:00]} 3. d4 {[%emt 0:00:50]} cxd4 {[%emt 0:00:00]} 4. Nxd4 {[%emt 0:01:11]} Nf6 {[%emt 0:00:00]} 5. Nc3 {[%emt 0:01:37]} d6 {[%emt 0:00:00]} 6. Bc4 {[%emt 0:01:06]} Qb6 {[%emt 0:00:05]} 7. Nxc6 {[%emt 0:02:49]} bxc6 {[%emt 0:00:15]} 8. O-O {[%emt 0:01:48]} e5 {[%emt 0:05:14]} 9. Bg5 {[%emt 0:02:03]} Qxb2 {[%emt 0:10:00] B57: Classical Sicilian: Sozin with 6...Qb6} 10. Qd3 {[%emt 0:02:46]} Qb6 {[%emt 0:09:03]} (10... Qb4 11. Bxf6 gxf6 12. f4 Be6 13. Bxe6 fxe6 14. Qh3 Be7 15. Rab1 Qc5+ 16. Kh1 Qc4 17. Rf3 Kd8 18. Rb7 Qa6 19. Rb3 Kd7 20. f5 Rag8 21. fxe6+ Kc7 22. Nd5+ cxd5 23. Rfc3+ {1-0 (24) Winants,L (2516)-Galkin,A (2590) playchess.com INT 2007}) 11. Bxf6 {[%emt 0:04:07]} gxf6 {[%emt 0:00:00]} 12. Nd5 {[%emt 0:00:29] LiveBook: 5 Games} Qd8 {[%emt 0:11:07]} 13. Rab1 {[%emt 0:02:47]} Be7 {[%emt 0:19:52]} 14. Ne3 $146 {[%emt 0:04:39]} ({Predecessor:} 14. Nxe7 Kxe7 15. f4 Qa5 16. Kh1 Rg8 17. Bxf7 Kxf7 18. Qxd6 {1-0 (76) Ashley,M (2465)-Waitzkin,J (2440) Bermuda 1997 CBM 058 [Rechlis,G]}) 14... Be6 {[%emt 0:03:19]} ({Better is} 14... a5 $14) 15. Rb7 {[%emt 0:05:23]} Bc8 {[%emt 0:06:52]} 16. Rb2 {[%emt 0:11:31]} f5 {[%emt 0:08:24]} (16... O-O $14) 17. exf5 {[%emt 0:11:14]} a5 {[%emt 0:02:06]} 18. Qb3 {[%emt 0:10:32]} (18. Qe4 $16) 18... a4 (18... d5 $11 {keeps the balance.}) 19. Bxf7+ {[%emt 0:12:53]} Kf8 {[%emt 0:03:28]} 20. Qc4 {[%emt 0:00:09]} d5 {[%emt 0:09:33]} 21. Qxc6 {[%emt 0:01:17]} Ra6 {[%emt 0:00:00]} 22. Qxd5 {[%emt 0:00:26]} Rd6 {[%emt 0:00:06]} 23. Qe4 {[%emt 0:07:05]} Kxf7 {[%emt 0:01:31]} 24. Nc4 {[%emt 0:01:04]} Rd5 {[%emt 0:00:49] [#]} 25. Nxe5+ $2 {[%emt 0:01:17]} ({Only move:} 25. Rb8 $1 $18 {[%cal Rb8c8]} Rd1 26. Nxe5+ Kf6 27. Rb6+ Qxb6 28. Rxd1) 25... Rxe5 {[%emt 0:00:08]} 26. Qxe5 {[%emt 0:00:39]} Bf6 {[%emt 0:00:03]} 27. Qb5 {[%emt 0:01:44]} Bxb2 {[%emt 0:00:15]} 28. Qxb2 {[%emt 0:00:06]} Bxf5 {[%emt 0:00:31]} 29. Qc3 {[%emt 0:01:34]} Qc8 {[%emt 0:00:48]} 30. Qd4 {[%emt 0:01:30]} Rg8 {[%emt 0:05:24]} 31. Qxa4 {[%emt 0:02:05]} Qb7 {[%emt 0:01:29]} 32. Qc4+ {[%emt 0:01:14]} Be6 {[%emt 0:00:22]} 33. Qf4+ {[%emt 0:00:18]} Ke7 {[%emt 0:00:11]} 34. Qh4+ {[%emt 0:00:22]} Ke8 {[%emt 0:00:32]} 35. f3 {[%emt 0:00:40]} Qg7 {[%emt 0:00:47]} 36. Qh5+ {[%emt 0:03:03]} Kd7 {[%emt 0:02:01]} 37. Qb5+ {[%emt 0:01:13]} Ke7 {[%emt 0:01:25]} 38. Qb7+ {[%emt 0:01:57]} Kf6 {[%emt 0:00:12]} 39. Qb2+ {[%emt 0:01:46]} Kg6 {[%emt 0:00:48]} 40. Qxg7+ {[%emt 0:00:00]} Rxg7 {[%emt 0:00:00]} 41. a4 {[%emt 0:02:38]} Rc7 {[%emt 0:01:17]} 42. Ra1 {[%emt 0:00:56]} Rxc2 {[%emt 0:00:36]} 43. a5 {[%emt 0:00:15]} Rc7 {[%emt 0:00:19]} 44. Kf2 {[%emt 0:00:10]} Kf5 {[%emt 0:00:22]} 45. Ke3 {[%emt 0:00:30]} Ke5 {[%emt 0:00:15]} 46. f4+ {[%emt 0:00:21]} Kf5 {[%emt 0:00:58]} 47. g3 {[%emt 0:00:23]} Bc8 {[%emt 0:00:25]} 48. Kd4 {[%emt 0:11:37]} ({Reject} 48. a6 Ra7 $17) 48... Ba6 {[%emt 0:01:45]} 49. Ra2 {[%emt 0:01:08]} Ke6 {[%emt 0:01:15]} 50. g4 {[%emt 0:02:08]} Rc4+ {[%emt 0:00:10]} 51. Ke3 {[%emt 0:00:10]} Rc1 {[%emt 0:00:51]} 52. Rb2 {[%emt 0:02:11]} Kf7 {[%emt 0:01:42]} 53. Rb6 {[%emt 0:01:56]} Bc8 {[%emt 0:00:23]} 54. g5 {[%emt 0:01:00]} Rc5 {[%emt 0:00:13]} 55. a6 {[%emt 0:01:39]} Ra5 {[%emt 0:00:08]} 56. Rb8 {[%emt 0:00:20]} Bxa6 {[%emt 0:00:50]} 57. Ra8 {[%emt 0:00:19]} Ra3+ {[%emt 0:00:42]} 58. Kd4 {[%emt 0:00:26]} Rd3+ {[%emt 0:01:12]} 59. Ke5 {[%emt 0:03:02]} Bb7 {[%emt 0:00:47]} 60. Ra5 {[%emt 0:00:15]} Re3+ {[%emt 0:00:13]} 61. Kd6 {[%emt 0:00:36]} Kg6 {[%emt 0:00:36]} 62. h4 {[%emt 0:03:06]} Bc8 {[%emt 0:01:21]} 63. Ra8 {[%emt 0:01:22]} Bf5 {[%emt 0:01:00]} 64. Rf8 $1 {[%emt 0:00:14]} Bd3 {[%emt 0:01:38] [#]} 65. Rf6+ {[%emt 0:00:16]} (65. f5+ $1 $11 {[%mdl 512]} Kg7 (65... Bxf5 66. Rf6+) 66. Rf6) 65... Kh5 {[%emt 0:05:06]} 66. f5 {[%emt 0:01:30]} Kxh4 {[%emt 0:00:32]} 67. g6 {[%emt 0:00:16]} hxg6 {[%emt 0:00:11]} 68. fxg6 {[%emt 0:00:16]} Rg3 {[%emt 0:00:09]} 69. Ke5 {[%emt 0:00:41]} Bxg6 {[%emt 0:00:16]} 70. Rf4+ {[%emt 0:00:39]} Kg5 {[%emt 0:00:09]} 71. Rf2 {[%emt 0:00:41]} Re3+ {[%emt 0:00:09]} 72. Kd4 {[%emt 0:00:12]} Re1 {[%emt 0:00:23]} 73. Kc3 {[%emt 0:00:27]} Bf5 {[%emt 0:00:15]} 74. Kd2 {[%emt 0:00:24]} Ra1 {[%emt 0:00:12]} 75. Kc3 {[%emt 0:00:26]} Kf6 {[%emt 0:00:07]} 76. Kd4 {[%emt 0:00:36]} Ke6 {[%emt 0:00:08]} 77. Rb2 {[%emt 0:00:25]} Rd1+ {[%emt 0:00:24]} 78. Kc3 {[%emt 0:00:53]} Ke5 {[%emt 0:00:17]} 79. Rb5+ {[%emt 0:00:21]} Ke4 {[%emt 0:00:09]} 80. Rb4+ {[%emt 0:00:15]} Ke3 {[%emt 0:00:08]} 81. Kc4 {[%emt 0:00:17]} Rd8 {[%emt 0:01:12]} 82. Kc5 {[%emt 0:00:24]} Be4 {[%emt 0:00:15]} 83. Rb3+ {[%emt 0:00:21]} Kf4 {[%emt 0:00:17]} 84. Rh3 {[%emt 0:00:55]} Ke5 {[%emt 0:00:04]} 85. Rh5+ {[%emt 0:00:09]} Bf5 {[%emt 0:00:00]} 86. Kb4 {[%emt 0:00:37]} Rc8 {[%emt 0:00:08]} 87. Rh6 {[%emt 0:00:11]} Be4 {[%emt 0:00:20]} 88. Rb6 {[%emt 0:00:14]} Kd4 {[%emt 0:00:13]} 89. Kb3 {[%emt 0:00:40]} Rc1 {[%emt 0:00:53]} 90. Rd6+ {[%emt 0:00:11]} Bd5+ {[%emt 0:00:03]} 91. Kb2 {[%emt 0:00:15]} Rc5 {[%emt 0:00:04]} 92. Rb6 {[%emt 0:00:27]} Ke3 {[%emt 0:01:38]} 93. Rb4 {[%emt 0:00:49]} Bc4 {[%emt 0:00:27]} 94. Rb6 {[%emt 0:01:03]} Kd2 {[%emt 0:00:07]} 95. Rb8 {[%emt 0:00:55]} Bd3 {[%emt 0:00:09]} 96. Kb3 {[%emt 0:00:18]} Rc1 {[%emt 0:00:10]} 97. Rd8 {[%emt 0:01:24]} Rb1+ {[%emt 0:00:08]} 98. Ka4 {[%emt 0:00:18]} Kc3 {[%emt 0:00:30]} 99. Ka5 $2 {[%emt 0:00:34]} Rb5+ {[%emt 0:00:30]} 100. Ka4 {[%emt 0:00:21]} Rb6 $2 {[%emt 0:00:36]} (100... Rc5 {mates} 101. Ra8 Be4 102. Ra6 Rh5 103. Ka3 Rh1 104. Ka4 Ra1+ 105. Kb5 Bd3+ 106. Kc6 Bxa6 107. Kd6 Re1 108. Kc5 Re5+ 109. Kb6 Kc4 110. Kxa6 Kc5 111. Kb7 Re7+ 112. Kc8 Kc6 113. Kb8 Re8+ 114. Ka7 Rd8 115. Ka6 Ra8#) 101. Ra8 {[%emt 0:02:06]} Rb1 {[%emt 0:00:50]} 102. Rc8+ $17 {[%emt 0:00:09]} Bc4 {[%emt 0:00:05]} 103. Ka5 {[%emt 0:00:16]} Rb5+ {[%emt 0:00:06]} 104. Ka4 {[%emt 0:00:09]} Rb6 {[%emt 0:00:05]} 105. Rc5 $1 {[%emt 0:00:19]} Kd4 {[%emt 0:02:20]} 106. Rg5 {[%emt 0:00:36]} Bd3 {[%emt 0:02:21]} 107. Rg4+ {[%emt 0:02:17]} ({Besser ist} 107. Ka5 $11) 107... Kc3 {[%emt 0:00:48]} 108. Rg5 {[%emt 0:00:18]} Rb1 {[%emt 0:01:45]} 109. Ka5 {[%emt 0:00:18]} Kd4 {[%emt 0:01:21]} 110. Ka4 {[%emt 0:01:20]} Be4 {[%emt 0:01:35]} 111. Rg4 {[%emt 0:01:08]} Kd3 {[%emt 0:00:21]} 112. Ka5 {[%emt 0:00:18]} Bc6 {[%emt 0:00:44]} 113. Ka6 {[%emt 0:01:01]} Be4 {[%emt 0:00:28]} 114. Rg5 {[%emt 0:00:20]} Kd4 {[%emt 0:00:09]} 115. Ra5 $11 {[%emt 0:00:58]} Bd5 {[%emt 0:00:14]} 116. Ka7 {[%emt 0:01:01]} Ke5 {[%emt 0:00:07]} 117. Ra3 {[%emt 0:01:00]} Kd6 {[%emt 0:00:07]} 118. Rc3 {[%emt 0:00:33]} Bc6 119. Ra3 Kc5 {[%emt 0:01:27]} 1/2-1/2

[Event "FIDE WCCC U10 2018"]
[Site "Santiago de Compostela"]
[Date "2018.11.11"]
[Round "7"]
[White "Cereijo Suarez, Alejandro"]
[Black "Cnejev, Vladimir-Alexandru"]
[Result "0-1"]
[ECO "D36"]
[WhiteElo "1575"]
[BlackElo "1810"]
[Annotator "NA RC"]
[PlyCount "69"]
[EventDate "2018.11.04"]
[EventType "swiss"]
[EventCountry "ESP"]
[SourceTitle "playchess.com"]
[Source "ChessBase"]
[SourceQuality "1"]
[TimeControl "40/5400+30:1800+30"]

{[%evp 8,66,5,16,8,32767,29,32767,32767,32767,32767,32767,24,30,32767,32767,20,-12,-17,-31,-12,32767,32767,32767,32767,-44,32767,-25,-35,32767,-110,-135,-142,-137,32767,-150,-119,-319,-244,-288,-258,-341,-389,-418,-422,-467,-464,-400,-450,-404,-461,-450,-468,32767,32767,32767,32767,32767,-1287,-29993,-29994]} 1. d4 {[%emt 0:00:00]} d5 {[%emt 0:00:00]} 2. c4 {[%emt 0:00:00]} e6 {[%emt 0:00:00]} 3. Nc3 {[%emt 0:00:00]} Nf6 {[%emt 0:00:00]} 4. cxd5 {[%emt 0:00:00]} exd5 {[%emt 0:00:00]} 5. Bg5 {[%emt 0:00:00]} c6 {[%emt 0:00:05]} 6. Qc2 {[%emt 0:00:52]} Be7 {[%emt 0:00:12]} 7. e3 {[%emt 0:00:09]} Nbd7 {[%emt 0:00:09]} 8. Bd3 {[%emt 0:00:16]} Nh5 {[%emt 0:00:20]} 9. Bxe7 {[%emt 0:01:57]} Qxe7 {[%emt 0:00:03]} 10. Nge2 {[%emt 0:08:19] LiveBook: 453 Games} Nb6 {[%emt 0:00:48]} 11. O-O {[%emt 0:04:03]} g6 {[%emt 0:00:12] D36: Queen's Gambit Declined: Exchange Variation: Main line (5 Bg5 c6 6 Qc2)} 12. Nf4 {[%emt 0:05:16]} (12. Rae1 O-O 13. Nc1 Ng7 14. f3 Bf5 15. e4 Be6 16. exd5 Nxd5 17. Nxd5 cxd5 18. Nb3 Rac8 19. Qd2 {½-½ (38) Wang,H (2717)-Sargissian,G (2702) Huaian 2016}) 12... Nxf4 {[%emt 0:02:19]} 13. exf4 {[%emt 0:00:08]} O-O {[%emt 0:00:10]} 14. Rfe1 $146 {[%emt 0:11:31]} ({Predecessor:} 14. f5 Qf6 15. fxg6 fxg6 16. Rad1 Bf5 17. b3 Rae8 18. Ne2 Bxd3 19. Rxd3 {0-1 (32) Mazzariol,O (2080)-Bonazzi,E (2163) Bratto 2008}) 14... Qf6 {[%emt 0:00:43]} 15. Ne2 {[%emt 0:01:07]} Bd7 {[%emt 0:00:55]} 16. Rad1 {[%emt 0:06:41]} Nc8 {[%emt 0:07:09]} 17. Qc1 {[%emt 0:01:59]} Re8 {[%emt 0:03:46]} 18. Bb1 {[%emt 0:07:43]} Nd6 {[%emt 0:04:20]} 19. b3 {[%emt 0:02:32]} Re7 {[%emt 0:01:57]} 20. Qd2 {[%emt 0:08:10]} Rae8 {[%emt 0:00:52]} 21. h3 {[%emt 0:01:19]} h5 {[%emt 0:02:01]} 22. f3 $2 {[%emt 0:02:26]} (22. Ng3 $17) 22... h4 {[%emt 0:01:32]} 23. a4 Bf5 24. Ba2 {[%emt 0:02:09]} Re3 {[%emt 0:00:51]} 25. Kf2 {[%emt 0:02:30]} Bd3 {[%emt 0:02:09]} 26. Qxe3 {[%emt 0:01:45]} Rxe3 {[%emt 0:00:08]} 27. Kxe3 {[%emt 0:00:04]} Bxe2 28. Rxe2 {[%emt 0:02:14]} Nf5+ {[%emt 0:00:15]} 29. Kf2 {[%emt 0:01:23]} Nxd4 {[%emt 0:00:16]} 30. Re8+ {[%emt 0:03:50]} Kg7 {[%emt 0:00:18]} 31. Ra8 {[%emt 0:01:35]} Ne6 {[%emt 0:03:59]} 32. Re1 {[%emt 0:02:24]} Nxf4 {[%emt 0:01:23]} 33. Rb1 {[%emt 0:01:42]} Qd4+ {[%emt 0:00:15]} 34. Kf1 {[%emt 0:01:17]} Qd2 {[%emt 0:00:20]} 35. Kg1 0-1

[Event "FIDE WCCC U10 2018"]
[Site "Santiago de Compostela"]
[Date "2018.11.12"]
[Round "8"]
[White "Kuhn, Clement"]
[Black "Matsumura, Cocoro"]
[Result "1/2-1/2"]
[ECO "B22"]
[WhiteElo "2087"]
[BlackElo "1699"]
[Annotator "NA RC"]
[PlyCount "138"]
[EventDate "2018.11.04"]
[EventType "swiss"]
[EventCountry "ESP"]
[SourceTitle "playchess.com"]
[Source "ChessBase"]
[SourceQuality "1"]
[TimeControl "40/5400+30:1800+30"]

{[%evp 8,138,12,-2,2,-6,-8,7,5,-4,32767,20,47,14,45,44,46,42,44,32767,32767,10,32,0,33,13,46,-10,20,22,32767,20,32767,18,43,32767,36,-49,32767,32767,-15,32767,32767,0,-2,0,32767,32767,25,-170,32767,32767,32767,-92,32767,32767,-68,32767,-70,-78,-64,-62,-79,32767,32767,32767,32767,32767,32767,32767,32767,32767,32767,32767,32767,32767,32767,32767,32767,32767,32767,32767,-179,32767,-189,-215,-231,-227,-240,-268,-235,-325,-314,-429,-237,-321,32767,-212,-208,-300,-265,-405,-589,-504,0,-5,0,32767,32767,32767,32767,32767,32767,32767,32767,32767,32767,32767,32767,32767,32767,32767,32767,32767,32767,32767,32767,32767,176,193,69,0,0]} 1. e4 {[%emt 0:00:00]} c5 {[%emt 0:00:00]} 2. c3 {[%emt 0:00:00]} Nf6 {[%emt 0:00:00]} 3. e5 {[%emt 0:00:00]} Nd5 {[%emt 0:00:00]} 4. d4 {[%emt 0:00:05]} cxd4 {[%emt 0:00:00]} 5. Nf3 {[%emt 0:00:07]} Nc6 {[%emt 0:00:00]} 6. cxd4 {[%emt 0:01:35]} d6 {[%emt 0:00:08]} 7. Bc4 {[%emt 0:06:47]} Nb6 {[%emt 0:00:05]} 8. Bb5 {[%emt 0:04:06]} a6 {[%emt 0:15:14]} 9. Bxc6+ $1 {[%emt 0:01:40]} bxc6 {[%emt 0:01:06]} 10. O-O {[%emt 0:03:22] LiveBook: 5 Games} g6 {[%emt 0:06:35] B22: Sicilian: 2 c3} 11. Bf4 {[%emt 0:06:07]} Nd5 {[%emt 0:15:23]} 12. Bg3 {[%emt 0:00:26]} dxe5 $146 {[%emt 0:01:23]} ({Predecessor:} 12... Bg7 13. exd6 exd6 14. Re1+ Be6 15. Nbd2 Bf6 16. Ne4 Be7 17. Rc1 Rc8 18. Qd2 {½-½ (25) Bujdoso,B (2067)-Szekeres,R (2275) Heves 2001}) 13. Nxe5 {[%emt 0:02:48]} Bg7 {[%emt 0:01:33]} 14. Qf3 {[%emt 0:10:52]} Be6 {[%emt 0:01:48]} 15. Nd2 {[%emt 0:08:18]} O-O {[%emt 0:17:23]} 16. Nb3 {[%emt 0:25:18]} Nb4 {[%emt 0:17:31]} 17. Rfc1 {[%emt 0:13:36]} ({White should try} 17. Nc5 $14) 17... a5 {[%emt 0:06:57]} 18. a3 {[%emt 0:05:23]} Bd5 {[%emt 0:04:39]} 19. Qc3 {[%emt 0:00:55]} a4 {[%emt 0:00:13]} 20. Qxb4 {[%emt 0:01:11]} axb3 {[%emt 0:00:48]} 21. Nd3 {[%emt 0:02:44]} Ra5 {[%emt 0:05:42]} 22. Rc5 {[%emt 0:01:46]} (22. a4 $14) 22... Rxc5 {[%emt 0:00:23]} 23. Nxc5 {[%emt 0:00:31]} Qc8 {[%emt 0:00:37]} 24. Rd1 {[%emt 0:01:37]} Qg4 {[%emt 0:00:25]} 25. Rd3 {[%emt 0:01:00]} Qe2 {[%emt 0:00:27]} 26. Qd2 {[%emt 0:00:22]} Qg4 {[%emt 0:00:30]} 27. f3 {[%emt 0:00:50]} Qf5 {[%emt 0:00:50]} 28. Qd1 $2 {[%emt 0:01:31]} (28. Be5 $11) 28... Rd8 {[%emt 0:00:39]} 29. Bf2 {[%emt 0:00:39]} e5 {[%emt 0:00:36]} 30. Nxb3 {[%emt 0:00:38]} (30. dxe5 $11 Bxe5 31. Ne4) 30... Bxb3 {[%emt 0:00:12]} 31. Qxb3 {[%emt 0:00:26]} exd4 {[%emt 0:00:06]} 32. Qd1 {[%emt 0:00:36]} c5 {[%emt 0:00:13]} 33. b3 {[%emt 0:00:12]} Ra8 {[%emt 0:00:46]} 34. a4 {[%emt 0:00:30]} Rb8 {[%emt 0:00:14]} 35. Qc2 {[%emt 0:00:31]} Be5 {[%emt 0:00:39]} 36. g3 {[%emt 0:00:27]} Bd6 {[%emt 0:00:27]} 37. Kg2 {[%emt 0:00:46]} Rb4 {[%emt 0:00:45]} 38. Be1 {[%emt 0:00:25]} Rb8 {[%emt 0:00:26]} 39. Bf2 {[%emt 0:00:29]} h5 {[%emt 0:00:56]} 40. Qd1 {[%emt 0:00:00]} Qe5 {[%emt 0:00:00]} 41. Qe1 {[%emt 0:01:44]} Qxe1 {[%emt 0:02:22]} 42. Bxe1 {[%emt 0:00:49]} Be5 {[%emt 0:00:05]} 43. f4 {[%emt 0:00:43]} Bg7 {[%emt 0:01:04]} 44. Bf2 {[%emt 0:00:59]} f5 {[%emt 0:00:59]} 45. h3 Kf7 {[%emt 0:03:38]} 46. g4 {[%emt 0:06:22]} Bf6 {[%emt 0:00:59]} ({Don't play} 46... fxg4 47. hxg4 hxg4 48. Kg3 $17) 47. gxf5 {[%emt 0:00:29]} gxf5 {[%emt 0:00:01]} 48. Kf1 {[%emt 0:03:46]} Ke6 {[%emt 0:00:11]} 49. Rg3 {[%emt 0:02:00]} Kd5 {[%emt 0:02:12]} 50. Rg6 {[%emt 0:01:26]} Bd8 {[%emt 0:02:02]} (50... Be7 $142 51. Rg3 Bd6) 51. Rg8 {[%emt 0:02:01]} Ke4 {[%emt 0:06:04]} 52. Ke2 {[%emt 0:08:01] [#]} (52. Re8+ $17 Kf3 53. a5) 52... Bc7 $1 {[%emt 0:04:49]} 53. Rxb8 {[%emt 0:01:14]} Bxb8 {[%emt 0:00:02]} 54. Bg3 {[%emt 0:00:47]} Bc7 {[%emt 0:00:45]} 55. Be1 {[%emt 0:01:37]} Bb6 $2 {[%emt 0:05:25]} (55... Bxf4 $19 56. a5 Bb8) 56. a5 {[%emt 0:01:58]} Ba7 {[%emt 0:00:07]} 57. Bd2 {[%emt 0:00:20]} d3+ {[%emt 0:01:30]} 58. Kd1 {[%emt 0:00:14]} Kf3 {[%emt 0:00:10]} 59. Ke1 {[%emt 0:00:24]} Kg3 {[%emt 0:01:02]} 60. Be3 {[%emt 0:00:29]} Kxh3 {[%emt 0:00:14]} 61. b4 {[%emt 0:01:43]} Kg2 {[%emt 0:05:36]} 62. b5 {[%emt 0:00:27]} h4 {[%emt 0:00:04]} 63. b6 {[%emt 0:00:04]} Bxb6 {[%emt 0:00:06]} 64. axb6 {[%emt 0:00:03]} h3 65. b7 {[%emt 0:00:13]} h2 {[%emt 0:00:11]} 66. b8=Q {[%emt 0:00:09]} h1=Q+ {[%emt 0:00:14]} 67. Kd2 {[%emt 0:00:07]} Qf1 {[%emt 0:00:30]} 68. Qb7+ {[%emt 0:01:24]} Kg3 {[%emt 0:00:41]} 69. Qg7+ $2 {[%emt 0:00:26]} ({White must play} 69. Kc3 $18) 69... Kf3 $11 {[%emt 0:00:11]} 1/2-1/2

[Event "FIDE WCCC U10 2018"]
[Site "Santiago de Compostela"]
[Date "2018.11.12"]
[Round "8"]
[White "Zhong, Kevin"]
[Black "Shivakumar, Shawnak"]
[Result "1/2-1/2"]
[ECO "B45"]
[WhiteElo "2038"]
[BlackElo "1688"]
[Annotator "NA RC"]
[PlyCount "28"]
[EventDate "2018.11.04"]
[EventType "swiss"]
[EventCountry "ESP"]
[SourceTitle "playchess.com"]
[Source "ChessBase"]
[SourceQuality "1"]
[TimeControl "40/5400+30:1800+30"]

{[%evp 8,27,35,32767,32767,32767,32767,32767,32767,32767,0,0,0,0,0,0,0,0,0,0,0,0]} 1. e4 {[%emt 0:00:00]} c5 {[%emt 0:00:00]} 2. Ne2 {[%emt 0:00:00]} Nc6 {[%emt 0:00:00]} 3. Nbc3 {[%emt 0:00:00]} e6 {[%emt 0:00:00]} 4. d4 {[%emt 0:00:00]} cxd4 {[%emt 0:00:00]} 5. Nxd4 {[%emt 0:00:00]} Nf6 {[%emt 0:00:00]} 6. Ndb5 {[%emt 0:00:15]} Bc5 {[%emt 0:00:00]} 7. Bf4 {[%emt 0:06:33]} O-O {[%emt 0:00:12]} 8. Bd6 {[%emt 0:01:56]} Qb6 {[%emt 0:00:58]} 9. Bxc5 {[%emt 0:06:37]} Qxc5 {[%emt 0:00:15]} 10. Qd6 {[%emt 0:07:52]} Qb6 $1 {[%emt 0:02:54]} 11. Qc7 {[%emt 0:00:55]} Qc5 {[%emt 0:01:31]} 12. Qd6 {[%emt 0:00:49]} Qb6 {[%emt 0:01:44]} 13. Qc7 {[%emt 0:05:18]} Qc5 {[%emt 0:00:39]} 14. Qd6 $11 Qb6 1/2-1/2